fUST/lending_fUST_20250604
["ID","MTS","AMOUNT","RATE_DAILY","PERIOD"]
[364192880,1749036633742,-400.0,0.00019742,2]
[364192881,1749036633751,-450.0,0.00019742,2]
[364192882,1749036633761,-400.0,0.00019742,2]
[364192883,1749036633771,-440.0,0.00019742,2]
[364192884,1749036633781,-450.0,0.00019742,2]
[364192885,1749036633791,-440.0,0.00019742,2]
[364192886,1749036633801,-440.0,0.00019742,2]
[364192887,1749036633811,-407.79337554,0.00019742,2]
[364192888,1749036633821,-555.07907724,0.00019742,2]
[364192889,1749036633831,-430.0,0.00019742,2]
[364192890,1749036633842,-451.57802046,0.00019742,2]
[364192891,1749036633852,-440.0,0.00019742,2]
[364192892,1749036633863,-430.0,0.00019742,2]
[364192893,1749036633874,-440.0,0.00019742,2]
[364192894,1749036633886,-430.0,0.00019742,2]
[364192895,1749036633896,-440.0,0.00019742,2]
[364192896,1749036633907,-440.0,0.00019742,2]
[364192897,1749036633918,-440.0,0.00019742,2]
[364192898,1749036633928,-440.0,0.00019742,2]
[364192899,1749036633939,-440.0,0.00019742,2]
[364192900,1749036633948,-440.0,0.00019742,2]
[364192901,1749036633958,-572.58106463,0.00019742,2]
[364192902,1749036633969,-440.0,0.00019742,2]
[364192903,1749036633983,-415.22696666,0.00019742,2]
[364192904,1749036633994,-440.0,0.00019742,2]
[364192905,1749036634005,-440.0,0.00019742,2]
[364192906,1749036634015,-440.0,0.00019742,2]
[364192907,1749036634025,-430.0,0.00019742,2]
[364192908,1749036634038,-430.0,0.00019742,2]
[364192909,1749036634048,-530.0,0.00019742,2]
[364192910,1749036634058,-450.0,0.00019742,2]
[364192911,1749036634070,-450.0,0.00019742,2]
[364192912,1749036634080,-430.0,0.00019742,2]
[364192913,1749036634090,-440.0,0.00019742,2]
[364192914,1749036634099,-440.0,0.00019742,2]
[364192915,1749036634110,-440.0,0.00019742,2]
[364192916,1749036634120,-560.31747311,0.00019742,2]
[364192917,1749036634130,-400.0,0.00019742,2]
[364192918,1749036634140,-430.0,0.00019742,2]
[364192919,1749036634150,-420.0,0.00019742,2]
[364192920,1749036634160,-430.0,0.00019742,2]
[364192921,1749036634169,-440.0,0.00019742,2]
[364192922,1749036634179,-430.0,0.00019742,2]
[364192923,1749036634190,-440.0,0.00019742,2]
[364192924,1749036634200,-440.0,0.00019742,2]
[364192925,1749036634210,-777.82,0.00019742,2]
[364192926,1749036634220,-440.0,0.00019742,2]
[364192927,1749036634230,-440.0,0.00019742,2]
[364192928,1749036634239,-440.0,0.00019742,2]
[364192929,1749036634249,-420.0,0.00019742,2]
[364192930,1749036634259,-430.0,0.00019742,2]
[364192931,1749036634270,-440.0,0.00019742,2]
[364192932,1749036634280,-440.0,0.00019742,2]
[364192933,1749036634291,-440.0,0.00019742,2]
[364192934,1749036634301,-430.0,0.00019742,2]
[364192935,1749036634311,-430.0,0.00019742,2]
[364192936,1749036634321,-2649.06,0.00019742,2]
[364192937,1749036634331,-440.0,0.00019742,2]
[364192938,1749036634342,-430.0,0.00019742,2]
[364192939,1749036634355,-440.0,0.00019742,2]
[364192940,1749036634364,-440.0,0.00019742,2]
[364192941,1749036634374,-440.0,0.00019742,2]
[364192942,1749036634384,-440.69313988,0.00019742,2]
[364192943,1749036634537,-440.0,0.00019742,2]
[364192944,1749036634547,-440.0,0.00019742,2]
[364192945,1749036634558,-430.0,0.00019742,2]
[364192946,1749036634567,-500.0,0.00019742,2]
[364192947,1749036634578,-440.0,0.00019742,2]
[364192948,1749036634588,-440.0,0.00019742,2]
[364192949,1749036634598,-440.0,0.00019742,2]
[364192950,1749036634608,-440.0,0.00019742,2]
[364192951,1749036634618,-440.0,0.00019742,2]
[364192952,1749036634628,-430.0,0.00019742,2]
[364192953,1749036634637,-440.0,0.00019742,2]
[364192954,1749036634647,-440.0,0.00019742,2]
[364192955,1749036634657,-451.57301229,0.00019742,2]
[364192956,1749036634667,-430.0,0.00019742,2]
[364192957,1749036634677,-430.0,0.00019742,2]
[364192958,1749036634687,-314.6727995,0.00019751,2]
[364192959,1749036634697,-440.0,0.00019751,2]
[364192960,1749036634707,-430.0,0.00019751,2]
[364192961,1749036634718,-430.0,0.00019751,2]
[364192962,1749036634727,-430.0,0.00019751,2]
[364192963,1749036634737,-430.0,0.00019751,2]
[364192964,1749036634747,-430.0,0.00019751,2]
[364192965,1749036634758,-460.0,0.00019751,2]
[364192966,1749036634767,-440.0,0.00019751,2]
[364192967,1749036634778,-458.35079593,0.00019751,2]
[364192968,1749036634787,-440.0,0.00019751,2]
[364192969,1749036634797,-440.0,0.00019751,2]
[364192970,1749036634807,-430.0,0.00019751,2]
[364192971,1749036634816,-162.380719,0.00019784,2]
[364192972,1749036634826,-162.875,0.00019808,2]
[364192973,1749036634836,-757.01128787,0.00019831,2]
[364192974,1749036634846,-168.3888056,0.00019839,2]
[364192975,1749036634856,-151.0,0.00019891,2]
[364192976,1749036634866,-151.0,0.00019891,2]
[364192977,1749036634876,-500.0,0.00019891,2]
[364192978,1749036634886,-174.61919141,0.00019894,2]
[364192979,1749036634896,-151.0,0.00019918,2]
[364192980,1749036634906,-151.0,0.00019918,2]
[364192981,1749036634916,-631.86419222,0.00019918,2]
[364192982,1749036634926,-198.0,0.00019946,2]
[364192983,1749036634936,-198.0,0.00019946,2]
[364192984,1749036634946,-181.08010149,0.00019949,2]
[364192985,1749036634956,-440.0,0.00019959,2]
[364192986,1749036634966,-440.0,0.00019959,2]
[364192987,1749036634977,-440.0,0.00019959,2]
[364192988,1749036634987,-1516.41,0.00019959,2]
[364192989,1749036634997,-420.0,0.00019959,2]
[364192990,1749036635007,-440.0,0.00019959,2]
[364192991,1749036635016,-770.84,0.00019959,2]
[364192992,1749036635027,-440.0,0.0001996,2]
[364192993,1749036635037,-420.0,0.0001996,2]
[364192994,1749036635046,-548.16242851,0.0001996,2]
[364192995,1749036635058,-440.0,0.0001996,2]
[364192996,1749036635068,-420.0,0.0001996,2]
[364192997,1749036635079,-440.0,0.0001996,2]
[364192998,1749036635090,-440.0,0.0001996,2]
[364192999,1749036635106,-440.0,0.0001996,2]
[364193000,1749036635123,-440.0,0.0001996,2]
[364193001,1749036635138,-440.0,0.0001996,2]
[364193002,1749036635147,-440.0,0.0001996,2]
[364193003,1749036635157,-420.0,0.0001996,2]
[364193004,1749036635168,-440.0,0.0001996,2]
[364193005,1749036635178,-440.0,0.0001996,2]
[364193006,1749036635188,-440.0,0.0001996,2]
[364193007,1749036635198,-440.0,0.0001996,2]
[364193008,1749036635208,-440.0,0.0001996,2]
[364193009,1749036635217,-413.86641696,0.0001996,2]
[364193010,1749036635227,-440.0,0.0001996,2]
[364193011,1749036635237,-440.0,0.0001996,2]
[364193012,1749036635247,-440.0,0.0001996,2]
[364193013,1749036635257,-497.56,0.0001996,2]
[364193014,1749036635267,-420.0,0.0001996,2]
[364193015,1749036635277,-440.0,0.0001996,2]
[364193016,1749036635287,-440.0,0.0001996,2]
[364193017,1749036635297,-443.33,0.0001996,2]
[364193018,1749036635307,-440.0,0.0001996,2]
[364193019,1749036635317,-440.0,0.0001996,2]
[364193020,1749036635327,-440.0,0.0001996,2]
[364193021,1749036635337,-980.95,0.00019961,2]
[364193022,1749036635348,-440.0,0.00019961,2]
[364193023,1749036635359,-151.93172327,0.0002,2]
[364193024,1749036635369,-175.7746086,0.0002,2]
[364193025,1749036635379,-187.78006525,0.00020004,2]
[364193026,1749036635388,-440.0,0.00020015,2]
[364193027,1749036635398,-410.0,0.00020015,2]
[364193028,1749036635409,-420.0,0.00020015,2]
[364193029,1749036635419,-512.87,0.00020015,2]
[364193030,1749036635429,-540.93,0.00020015,2]
[364193031,1749036635439,-440.0,0.00020015,2]
[364193032,1749036635448,-410.0,0.00020015,2]
[364193033,1749036635458,-440.0,0.00020015,2]
[364193034,1749036635468,-1075.19,0.00020015,2]
[364193035,1749036635478,-420.0,0.00020015,2]
[364193036,1749036635488,-440.0,0.00020015,2]
[364193037,1749036635498,-440.0,0.00020015,2]
[364193038,1749036635508,-440.0,0.00020015,2]
[364193039,1749036635518,-440.0,0.00020015,2]
[364193040,1749036635527,-440.0,0.00020015,2]
[364193041,1749036635538,-420.0,0.00020015,2]
[364193042,1749036635548,-440.0,0.00020015,2]
[364193043,1749036635558,-440.0,0.00020015,2]
[364193044,1749036635568,-440.0,0.00020015,2]
[364193045,1749036635579,-440.0,0.00020015,2]
[364193046,1749036635589,-440.0,0.00020015,2]
[364193047,1749036635599,-420.0,0.00020015,2]
[364193048,1749036635608,-440.0,0.00020015,2]
[364193049,1749036635619,-410.0,0.00020015,2]
[364193050,1749036635629,-420.0,0.00020015,2]
[364193051,1749036635639,-272.20404482,0.00020015,2]
[364193052,1749036635648,-440.0,0.00020016,2]
[364193053,1749036635658,-440.0,0.00020016,2]
[364193054,1749036635668,-238.88522453,0.00020016,2]
[364193055,1749036635678,-450.08952511,0.00020016,2]
[364193056,1749036635687,-440.0,0.00020016,2]
[364193057,1749036635697,-420.0,0.00020016,2]
[364193058,1749036635706,-420.0,0.00020016,2]
[364193059,1749036635717,-420.0,0.00020016,2]
[364193060,1749036635727,-440.0,0.00020016,2]
[364193061,1749036635737,-420.0,0.00020016,2]
[364193062,1749036635746,-420.0,0.00020016,2]
[364193063,1749036635757,-440.0,0.00020016,2]
[364193064,1749036635766,-440.0,0.00020016,2]
[364193065,1749036635776,-440.0,0.00020016,2]
[364193066,1749036635786,-440.0,0.00020016,2]
[364193067,1749036635796,-440.0,0.00020016,2]
[364193068,1749036635807,-420.0,0.00020016,2]
[364193069,1749036635816,-440.0,0.00020016,2]
[364193070,1749036635826,-486.96871785,0.00020016,2]
[364193071,1749036635836,-440.0,0.00020016,2]
[364193072,1749036635846,-420.0,0.00020016,2]
[364193073,1749036635856,-440.0,0.00020016,2]
[364193074,1749036635866,-440.0,0.00020016,2]
[364193075,1749036635875,-440.0,0.00020016,2]
[364193076,1749036635885,-440.0,0.00020016,2]
[364193077,1749036635895,-440.0,0.00020016,2]
[364193078,1749036635906,-420.0,0.00020016,2]
[364193079,1749036635916,-777.82,0.00020016,2]
[364193080,1749036635925,-420.0,0.00020016,2]
[364193081,1749036635935,-420.0,0.00020016,2]
[364193082,1749036635945,-440.0,0.00020016,2]
[364193083,1749036635954,-440.0,0.00020016,2]
[364193084,1749036635964,-440.0,0.00020016,2]
[364193085,1749036635974,-160.70859069,0.00020016,2]
[364193086,1749036635988,-2649.06,0.00020016,2]
[364193087,1749036635998,-440.0,0.00020016,2]
[364193088,1749036636008,-420.0,0.00020016,2]
[364193089,1749036636019,-420.0,0.00020016,2]
[364193090,1749036636029,-440.0,0.00020016,2]
[364193091,1749036636038,-440.0,0.00020016,2]
[364193092,1749036636048,-440.0,0.00020016,2]
[364193093,1749036636058,-463.81,0.00020016,2]
[364193094,1749036636068,-440.0,0.00020016,2]
[364193095,1749036636077,-576.46303397,0.00020016,2]
[364193096,1749036636087,-420.0,0.00020016,2]
[364193097,1749036636097,-525.7,0.00020016,2]
[364193098,1749036636107,-440.0,0.00020016,2]
[364193099,1749036636116,-440.0,0.00020016,2]
[364193100,1749036636127,-440.0,0.00020025,2]
[364193101,1749036636136,-420.0,0.00020025,2]
[364193102,1749036636147,-220.87983874,0.00020025,2]
[364193103,1749036636157,-420.0,0.00020025,2]
[364193104,1749036636167,-460.0,0.00020025,2]
[364193105,1749036636176,-194.72792766,0.00020059,2]
[364193106,1749036636186,-500.0,0.00020067,2]
[364193107,1749036636196,-500.0,0.00020067,2]
[364193108,1749036636206,-500.0,0.00020067,2]
[364193109,1749036636216,-160.26821744,0.00020067,2]
[364193110,1749036636226,-445.06727419,0.00020068,2]
[364193111,1749036636235,-16.98412862,0.00020068,2]
[364193112,1749036636253,-483.01587138,0.00020068,2]
[364193113,1749036636262,-501.32231701,0.00020068,2]
[364193114,1749036636272,-500.0,0.00020068,2]
[364193115,1749036636282,-757.01128787,0.00020072,2]
[364193116,1749036636291,-201.93286099,0.00020114,2]
[364193117,1749036636301,-440.0,0.00020124,2]
[364193118,1749036636311,-430.0,0.00020124,2]
[364193119,1749036636320,-430.0,0.00020124,2]
[364193120,1749036636329,-430.0,0.00020124,2]
[364193121,1749036636339,-430.0,0.00020124,2]
[364193122,1749036636348,-440.0,0.00020124,2]
[364193123,1749036636358,-440.0,0.00020124,2]
[364193124,1749036636367,-500.0,0.0002014,2]
[364193125,1749036636377,-616.7437032,0.0002014,2]
[364193126,1749036636387,-500.72357477,0.0002014,2]
[364193127,1749036636397,-509.87590744,0.00020143,2]
[364193128,1749036636406,-158.875448,0.0002015,3]
[364193129,1749036636416,-209.40437684,0.00020169,2]
[364193130,1749036636425,-207.4,0.00020185,2]
[364193131,1749036636435,-151.0,0.000202,3]
[364193132,1749036636445,-500.94939262,0.00020204,2]
[364193133,1749036636454,-500.0,0.00020204,2]
[364193134,1749036636464,-501.18617219,0.00020204,2]
[364193135,1749036636474,-500.0,0.00020206,2]
[364193136,1749036636483,-229.45591648,0.00020222,2]
[364193137,1749036636493,-217.15233878,0.00020224,2]
[364193138,1749036636503,-500.0,0.0002023,2]
[364193139,1749036636512,-420.0,0.00020233,2]
[364193140,1749036636522,-440.0,0.00020233,2]
[364193141,1749036636531,-440.0,0.00020233,2]
[364193142,1749036636541,-1516.41,0.00020233,2]
[364193143,1749036636550,-440.0,0.00020233,2]
[364193144,1749036636560,-770.84,0.00020233,2]
[364193145,1749036636569,-440.0,0.00020234,2]
[364193146,1749036636579,-440.0,0.00020234,2]
[364193147,1749036636588,-440.0,0.00020234,2]
[364193148,1749036636598,-440.0,0.00020234,2]
[364193149,1749036636607,-410.0,0.00020234,2]
[364193150,1749036636617,-410.0,0.00020234,2]
[364193151,1749036636627,-440.0,0.00020234,2]
[364193152,1749036636636,-440.0,0.00020234,2]
[364193153,1749036636646,-440.0,0.00020234,2]
[364193154,1749036636655,-410.0,0.00020234,2]
[364193155,1749036636665,-440.0,0.00020234,2]
[364193156,1749036636675,-410.0,0.00020234,2]
[364193157,1749036636685,-410.0,0.00020234,2]
[364193158,1749036636694,-440.0,0.00020234,2]
[364193159,1749036636704,-211.4395295,0.00020234,2]
[364193160,1749036636714,-440.0,0.00020234,2]
[364193161,1749036636725,-440.0,0.00020234,2]
[364193162,1749036636735,-440.0,0.00020234,2]
[364193163,1749036636745,-440.0,0.00020234,2]
[364193164,1749036636755,-440.0,0.00020234,2]
[364193165,1749036636764,-515.22800191,0.00020234,2]
[364193166,1749036636773,-980.95,0.00020235,2]
[364193167,1749036636783,-440.0,0.00020235,2]
[364193168,1749036636792,-500.0,0.00020236,2]
[364193169,1749036636801,-217.0,0.00020274,3]
[364193170,1749036636811,-225.18697532,0.00020279,2]
[364193171,1749036636820,-3769.52839568,0.00020288,3]
[364193172,1749036636829,-12146.27130799,0.00020289,2]
[364193173,1749036636839,-440.0,0.00020289,2]
[364193174,1749036636848,-512.87,0.00020289,2]
[364193175,1749036636858,-540.93,0.00020289,2]
[364193176,1749036636867,-440.0,0.00020289,2]
[364193177,1749036636877,-440.0,0.00020289,2]
[364193178,1749036636886,-1075.19,0.00020289,2]
[364193179,1749036636896,-440.0,0.00020289,2]
[364193180,1749036636905,-410.0,0.00020289,2]
[364193181,1749036636915,-440.0,0.00020289,2]
[364193182,1749036636924,-410.0,0.00020289,2]
[364193183,1749036636934,-440.0,0.00020289,2]
[364193184,1749036636943,-440.0,0.00020289,2]
[364193185,1749036636953,-440.0,0.00020289,2]
[364193186,1749036636962,-440.0,0.00020289,2]
[364193187,1749036636972,-440.0,0.00020289,2]
[364193188,1749036636985,-440.0,0.00020289,2]
[364193189,1749036636995,-440.0,0.0002029,2]
[364193190,1749036637005,-440.0,0.0002029,2]
[364193191,1749036637014,-440.0,0.0002029,2]
[364193192,1749036637024,-410.0,0.0002029,2]
[364193193,1749036637033,-440.0,0.0002029,2]
[364193194,1749036637043,-440.0,0.0002029,2]
[364193195,1749036637053,-440.0,0.0002029,2]
[364193196,1749036637064,-440.0,0.0002029,2]
[364193197,1749036637074,-410.0,0.0002029,2]
[364193198,1749036637083,-440.0,0.0002029,2]
[364193199,1749036637093,-440.0,0.0002029,2]
[364193200,1749036637103,-440.0,0.0002029,2]
[364193201,1749036637114,-440.0,0.0002029,2]
[364193202,1749036637128,-440.0,0.0002029,2]
[364193203,1749036637139,-440.0,0.0002029,2]
[364193204,1749036637148,-440.0,0.0002029,2]
[364193205,1749036637158,-777.82,0.0002029,2]
[364193206,1749036637168,-410.0,0.0002029,2]
[364193207,1749036637177,-440.0,0.0002029,2]
[364193208,1749036637187,-440.0,0.0002029,2]
[364193209,1749036637197,-2649.06,0.0002029,2]
[364193210,1749036637206,-390.43989339,0.0002029,2]
[364193211,1749036637215,-440.0,0.0002029,2]
[364193212,1749036637225,-440.0,0.0002029,2]
[364193213,1749036637235,-440.0,0.0002029,2]
[364193214,1749036637244,-440.0,0.0002029,2]
[364193215,1749036637254,-410.0,0.0002029,2]
[364193216,1749036637264,-440.0,0.0002029,2]
[364193217,1749036637274,-410.0,0.00020299,2]
[364193218,1749036637283,-757.01128787,0.00020314,3]
[364193219,1749036637393,-151.0,0.00020314,2]
[364193220,1749036637403,-151.0,0.00020314,2]
[364193221,1749036637413,-151.0,0.00020314,2]
[364193222,1749036637423,-151.0,0.00020314,2]
[364193223,1749036637432,-151.0,0.00020314,2]
[364193224,1749036637442,-236.14606466,0.00020324,2]
[364193225,1749036637451,-233.51889341,0.00020334,2]
[364193226,1749036637461,-242.15909246,0.00020389,2]
[364193227,1749036637471,-471.445303,0.00020398,2]
[364193228,1749036637481,-420.0,0.00020398,2]
[364193230,1749036637491,-420.0,0.00020398,2]
[364193231,1749036637500,-251.11897888,0.00020444,2]
[364193232,1749036637510,-260.4103811,0.00020499,2]
[364193233,1749036637521,-177.60489481,0.00020507,2]
[364193234,1749036637531,-440.0,0.00020507,2]
[364193235,1749036637541,-1516.41,0.00020507,2]
[364193236,1749036637551,-440.0,0.00020507,2]
[364193237,1749036637561,-770.84,0.00020507,2]
[364193238,1749036637571,-285.06,0.00020508,2]
[364193239,1749036637580,-175.13,0.00020508,2]
[364193240,1749036637590,-440.0,0.00020508,2]
[364193241,1749036637600,-237.5555863,0.00020508,2]
[364193242,1749036637609,-440.0,0.00020508,2]
[364193243,1749036637619,-440.0,0.00020508,2]
[364193244,1749036637628,-440.0,0.00020508,2]
[364193245,1749036637638,-410.0,0.00020508,2]
[364193246,1749036637648,-440.0,0.00020508,2]
[364193247,1749036637658,-170.08686581,0.00020508,2]
[364193248,1749036637668,-440.0,0.00020508,2]
[364193250,1749036637678,-440.0,0.00020508,2]
[364193252,1749036637687,-440.0,0.00020508,2]
[364193254,1749036637697,-440.0,0.00020508,2]
[364193256,1749036637707,-980.95,0.00020509,2]
[364193257,1749036637717,-440.0,0.00020509,2]
[364193258,1749036637727,-171.99621963,0.00020513,2]
[364193259,1749036637736,-270.0455652,0.00020554,2]
[364193260,1749036637746,-757.01128787,0.00020555,3]
[364193261,1749036637756,-423.08068349,0.00020563,2]
[364193262,1749036637765,-512.87,0.00020563,2]
[364193263,1749036637775,-540.93,0.00020563,2]
[364193264,1749036637785,-390.0,0.00020563,2]
[364193265,1749036637795,-440.0,0.00020563,2]
[364193266,1749036637805,-1075.19,0.00020563,2]
[364193267,1749036637815,-440.0,0.00020563,2]
[364193268,1749036637825,-440.0,0.00020563,2]
[364193269,1749036637834,-440.0,0.00020563,2]
[364193270,1749036637844,-440.0,0.00020563,2]
[364193271,1749036637854,-440.0,0.00020563,2]
[364193272,1749036637864,-440.0,0.00020563,2]
[364193273,1749036637874,-390.0,0.00020563,2]
[364193274,1749036637884,-440.0,0.00020563,2]
[364193275,1749036637894,-455.97024505,0.00020564,2]
[364193276,1749036637904,-400.0,0.00020564,2]
[364193277,1749036637914,-532.31711347,0.00020564,2]
[364193279,1749036637923,-440.0,0.00020564,2]
[364193281,1749036637933,-440.0,0.00020564,2]
[364193282,1749036637943,-400.0,0.00020564,2]
[364193283,1749036637953,-440.0,0.00020564,2]
[364193285,1749036637963,-400.0,0.00020564,2]
[364193287,1749036637973,-440.0,0.00020564,2]
[364193289,1749036637986,-440.0,0.00020564,2]
[364193291,1749036637996,-440.0,0.00020564,2]
[364193293,1749036638006,-440.0,0.00020564,2]
[364193295,1749036638015,-440.0,0.00020564,2]
[364193297,1749036638026,-440.0,0.00020564,2]
[364193299,1749036638036,-777.82,0.00020564,2]
[364193301,1749036638046,-440.0,0.00020564,2]
[364193304,1749036638058,-440.0,0.00020564,2]
[364193305,1749036638068,-2649.06,0.00020564,2]
[364193308,1749036638077,-440.0,0.00020564,2]
[364193310,1749036638087,-151.0,0.00020564,2]
[364193313,1749036638096,-440.0,0.00020564,2]
[364193315,1749036638107,-440.0,0.00020564,2]
[364193317,1749036638116,-151.0,0.00020564,2]
[364193319,1749036638125,-440.0,0.00020564,2]
[364193321,1749036638134,-440.0,0.00020564,2]
[364193323,1749036638144,-814.8,0.000206,2]
[364193325,1749036638153,-280.03725112,0.00020609,2]
[364193327,1749036638163,-501.04020596,0.00020615,2]
[364193329,1749036638173,-1000.0,0.00020616,2]
[364193330,1749036638182,-290.39862941,0.00020664,2]
[364193332,1749036638192,-505.162816,0.00020688,2]
[364193334,1749036638201,-301.1433787,0.00020719,2]
[364193336,1749036638211,-500.0,0.00020752,2]
[364193338,1749036638221,-1000.0,0.00020754,2]
[364193340,1749036638230,-440.0,0.00020781,2]
[364193342,1749036638239,-1516.41,0.00020781,2]
[364193344,1749036638249,-440.0,0.00020781,2]
[364193346,1749036638259,-770.84,0.00020781,2]
[364193348,1749036638268,-440.0,0.00020782,2]
[364193350,1749036638277,-390.0,0.00020782,2]
[364193352,1749036638286,-390.0,0.00020782,2]
[364193354,1749036638295,-390.0,0.00020782,2]
[364193356,1749036638304,-390.0,0.00020782,2]
[364193358,1749036638314,-413.5,0.00020782,2]
[364193360,1749036638324,-440.0,0.00020782,2]
[364193362,1749036638333,-174.94,0.00020782,2]
[364193364,1749036638342,-980.95,0.00020783,2]
[364193366,1749036638352,-192.24,0.00020783,2]
[364193368,1749036638362,-757.01128787,0.00020797,4]
[364193370,1749036638372,-512.87,0.00020837,2]
[364193372,1749036638381,-540.93,0.00020837,2]
[364193374,1749036638391,-440.0,0.00020837,2]
[364193376,1749036638400,-1075.19,0.00020837,2]
[364193378,1749036638410,-390.0,0.00020837,2]
[364193380,1749036638419,-390.0,0.00020837,2]
[364193382,1749036638430,-380.0,0.00020837,2]
[364193384,1749036638439,-336.98025834,0.00020837,2]
[364193386,1749036638449,-440.0,0.00020837,2]
[364193388,1749036638458,-390.0,0.00020837,2]
[364193390,1749036638467,-390.0,0.00020837,2]
[364193392,1749036638477,-390.0,0.00020838,2]
[364193394,1749036638487,-390.0,0.00020838,2]
[364193396,1749036638498,-390.0,0.00020838,2]
[364193398,1749036638507,-390.0,0.00020838,2]
[364193400,1749036638516,-390.0,0.00020838,2]
[364193402,1749036638526,-390.0,0.00020838,2]
[364193404,1749036638536,-390.0,0.00020838,2]
[364193406,1749036638546,-390.0,0.00020838,2]
[364193408,1749036638556,-440.0,0.00020838,2]
[364193410,1749036638565,-777.82,0.00020838,2]
[364193412,1749036638575,-440.0,0.00020838,2]
[364193414,1749036638584,-370.0,0.00020838,2]
[364193416,1749036638593,-2649.06,0.00020838,2]
[364193419,1749036638603,-440.0,0.00020838,2]
[364193421,1749036638612,-440.0,0.00020838,2]
[364193423,1749036638622,-390.0,0.00020838,2]
[364193425,1749036638631,-440.0,0.00020838,2]
[364193427,1749036638640,-440.0,0.00020838,2]
[364193429,1749036638650,-236.14606466,0.00021007,2]
[364193431,1749036638660,-390.0,0.00021055,2]
[364193433,1749036638670,-1516.41,0.00021055,2]
[364193435,1749036638679,-390.0,0.00021055,2]
[364193437,1749036638689,-770.84,0.00021055,2]
[364193439,1749036638698,-440.0,0.00021056,2]
[364193441,1749036638707,-440.0,0.00021056,2]
[364193443,1749036638717,-980.95,0.00021057,2]
[364193445,1749036638726,-512.87,0.00021111,2]
[364193447,1749036638736,-540.93,0.00021111,2]
[364193449,1749036638745,-440.0,0.00021111,2]
[364193451,1749036638754,-1075.19,0.00021111,2]
[364193453,1749036638764,-440.0,0.00021111,2]
[364193455,1749036638773,-154.33825629,0.00021112,2]
[364193457,1749036638783,-777.82,0.00021112,2]
[364193459,1749036638793,-440.0,0.00021112,2]
[364193461,1749036638802,-2649.06,0.00021112,2]
[364193463,1749036638812,-440.0,0.00021112,2]
[364193465,1749036638822,-440.0,0.00021112,2]
[364193467,1749036638832,-440.0,0.00021112,2]
[364193469,1749036638842,-440.0,0.00021112,2]
[364193471,1749036638851,-600.0,0.00021164,2]
[364193473,1749036638860,-200.0,0.00021306,7]
[364193475,1749036638869,-405.0,0.00021319,2]
[364193476,1749036638879,-1516.41,0.00021329,2]
[364193477,1749036638888,-770.84,0.00021329,2]
[364193478,1749036638898,-440.0,0.0002133,2]
[364193479,1749036638908,-477.72,0.0002133,2]
[364193480,1749036638918,-980.95,0.00021331,2]
[364193481,1749036638928,-512.87,0.00021385,2]
[364193482,1749036638938,-540.93,0.00021385,2]
[364193483,1749036638948,-229.4,0.00021385,2]